bitfinex-derivatives/quotes_ETHF0:USTF0_20251028
["timestamp","ask_amount","ask_price","bid_price","bid_amount"]
[1761626685669,43.04751727,4099.4,4099.3,1.31375423]
[1761626686372,0.4445,4099.3,4099.0,0.3171]
[1761626686572,1.19973,4099.1,4099.0,0.2132]
[1761626686774,1.19973,4099.1,4099.0,0.3499]
[1761626686968,1.19973,4099.1,4099.0,0.5672]
[1761626687172,1.19973,4099.1,4099.0,0.8843]
[1761626692775,0.88363,4099.1,4099.0,0.8843]
[1761626693875,1.19973,4099.1,4099.0,0.8843]
[1761626696784,0.88363,4099.1,4099.0,1.32344]
[1761626697083,0.43913,4099.1,4099.0,1.32344]
[1761626701272,0.43912,4099.2,4099.1,1.18672]
[1761626701476,0.43912,4099.2,4099.1,2.23453727]
[1761626704385,0.43912,4099.2,4099.1,1.79541727]
[1761626704890,0.43912,4099.2,4099.1,2.23454727]
[1761626705387,40.8,4099.5,4099.4,0.7797]
[1761626706084,41.23909,4099.5,4099.4,0.7797]
[1761626707881,0.43909,4099.5,4099.4,2.26661727]
[1761626708484,0.65979,4099.5,4099.4,2.26661727]
[1761626709788,0.2207,4100.3,4100.0,0.1359]
[1761626710089,0.6597,4100.3,4100.2,1.48621727]
[1761626710390,0.6597,4100.3,4100.2,1.81401727]
[1761626711390,0.6597,4100.3,4100.2,3.12489469]
[1761626711791,0.6597,4100.3,4100.2,2.07707742]
[1761626712184,0.6597,4100.3,4100.2,1.20521]
[1761626712482,0.6597,4100.3,4100.2,2.51583789]
[1761626713879,0.6597,4100.3,4100.2,2.07682789]
[1761626715295,0.6597,4100.3,4100.2,0.7662]
[1761626715690,0.439,4100.3,4100.2,0.7662]
[1761626716289,0.439,4100.3,4100.2,2.07682789]
[1761626716596,0.439,4100.4,4100.3,0.7662]
[1761626716896,0.439,4100.4,4100.3,2.4619]
[1761626717196,40.8,4100.5,4100.4,0.76679]
[1761626717493,0.43898,4100.6,4100.5,1.34108]
[1761626717894,41.23898,4100.6,4100.5,1.34108]
[1761626718289,0.43898,4100.6,4100.5,1.34108]
[1761626728712,1.27968,4100.5,4100.4,0.87197936]
[1761626728912,1.27968,4100.5,4100.2,1.31062789]
[1761626728913,1.1984,4100.3,4100.2,0.65422506]
[1761626729114,1.19841,4100.2,4100.1,0.65422506]
[1761626729511,0.43904,4100.0,4099.9,0.65422506]
[1761626729818,1.26894,4100.0,4099.9,0.65422506]
[1761626730208,1.26894,4100.0,4099.9,0.98202506]
[1761626730718,1.19844,4100.0,4099.9,0.98202506]
[1761626731405,1.19844,4100.0,4099.9,0.3278]
[1761626731606,1.19846,4099.8,4099.7,1.19977936]
[1761626732119,1.19846,4099.8,4099.7,1.42437936]
[1761626733018,1.19846,4099.8,4099.7,1.33399071]
[1761626734021,1.19846,4099.8,4099.7,1.54779071]
[1761626734219,0.87446,4099.8,4099.7,1.54779071]
[1761626734513,0.4286,4100.1,4100.0,0.589]
[1761626734713,0.4286,4100.1,4100.0,1.56120259]
[1761626734912,0.7498,4100.1,4100.0,1.56120259]
[1761626735520,1.18883,4100.1,4100.0,1.56120259]
[1761626737415,1.18883,4100.1,4100.0,0.9061]
[1761626738223,1.18883,4100.1,4100.0,0.68]
[1761626738414,1.18883,4100.1,4100.0,0.5462]
[1761626739620,0.86763,4100.1,4100.0,0.9061]
[1761626740717,0.64803,4100.1,4100.0,0.9061]
[1761626741018,0.43903,4100.1,4100.0,2.21672789]
[1761626745124,1.18883,4100.1,4100.0,0.3171]
[1761626746118,1.18883,4100.1,4100.0,0.5462]
[1761626747729,1.18883,4100.1,4100.0,0.68]
[1761626747917,0.43905,4099.9,4099.8,1.31062789]
[1761626748424,1.18888,4099.6,4099.5,1.31062789]
[1761626748624,1.18889,4099.5,4099.4,1.62772789]
[1761626748831,1.18889,4099.5,4099.4,1.85682789]
[1761626749528,1.18889,4099.5,4099.3,1.31062789]
[1761626749722,0.43912,4099.2,4099.1,0.3171]
[1761626749923,1.18892,4099.2,4099.1,0.3171]
[1761626750431,1.18892,4099.2,4099.1,0.5462]
[1761626751131,0.86772,4099.2,4099.1,2.08292789]
[1761626751429,0.64812,4099.2,4099.1,2.08292789]
[1761626751630,0.43912,4099.2,4099.1,2.08292789]
[1761626752930,0.86772,4099.2,4099.1,2.08292789]
[1761626755034,1.18892,4099.2,4099.1,1.85682789]
[1761626755426,0.86772,4099.2,4099.1,2.08292789]
[1761626755933,41.66772,4099.2,4099.1,2.08292789]
[1761626756839,41.23912,4099.2,4099.1,0.7723]
[1761626758633,41.56032,4099.2,4099.1,0.7723]
[1761626759438,41.23912,4099.2,4099.1,0.7723]
[1761626760331,41.23912,4099.2,4099.1,1.21143]
[1761626760933,41.23912,4099.2,4099.1,0.7723]
[1761626764641,41.57752,4099.2,4099.1,0.5462]
[1761626766247,41.57752,4099.2,4099.1,0.7746]
[1761626768143,41.57752,4099.2,4098.6,1.25973632]
[1761626768144,0.43918,4098.7,4098.6,1.75308059]
[1761626768439,1.19758,4098.7,4098.6,0.00302632]
[1761626768742,1.19758,4098.7,4098.6,1.62791988]
[1761626768939,1.19758,4098.7,4098.6,1.85401988]
[1761626770047,0.87458,4098.7,4098.6,2.07271988]
[1761626770747,0.66538,4098.7,4098.6,2.07271988]
[1761626771042,0.43917,4098.8,4098.7,1.19787]
[1761626771246,0.43917,4098.8,4098.7,2.50757527]
[1761626773844,0.43917,4098.8,4098.7,3.55546716]
[1761626775247,0.43917,4098.8,4098.7,2.24576189]
[1761626777449,0.43917,4098.8,4098.7,1.19787]
[1761626777645,0.43915,4099.0,4098.9,0.97914]
[1761626777848,0.43915,4099.0,4098.9,2.50937368]
[1761626778350,0.43915,4099.0,4098.9,1.19785]
[1761626779642,0.66535,4099.0,4098.9,1.19785]
[1761626780150,0.87455,4099.0,4098.9,0.7587]
[1761626781449,0.87455,4099.0,4098.9,1.19785]
[1761626781752,0.66535,4099.0,4098.9,1.19785]
[1761626781962,0.66534,4099.0,4098.9,1.19785]
[1761626783351,0.43914,4099.0,4098.9,1.19785]
[1761626783649,1.19747,4099.7,4099.6,0.7587]
[1761626784051,41.99747,4099.7,4099.6,0.54]
[1761626784847,41.67447,4099.7,4099.6,0.7587]
[1761626785052,0.43907,4099.7,4099.6,0.7587]
[1761626785550,0.66527,4099.7,4099.6,0.7587]
[1761626786350,0.87447,4099.7,4099.6,1.80659189]
[1761626788347,0.87447,4099.7,4099.6,3.11700207]
[1761626788745,1.19747,4099.7,4099.6,1.85041018]
[1761626789341,41.99747,4099.7,4099.6,1.85041018]
[1761626789746,1.19747,4099.7,4099.6,1.85041018]
[1761626789951,1.19747,4099.7,4099.6,2.06911018]
[1761626791248,0.87447,4099.7,4099.6,2.06911018]
[1761626792650,0.66527,4099.7,4099.6,1.19778]
[1761626792853,0.66527,4099.7,4099.6,1.14354683]
[1761626794153,0.66527,4099.7,4099.6,2.45391643]
[1761626795460,0.43907,4099.7,4099.6,2.01483643]
[1761626796054,0.66177,4099.7,4099.6,2.01483643]
[1761626796262,1.19837,4099.7,4099.6,0.70446683]
[1761626800262,0.87207,4099.7,4099.6,1.14354683]
[1761626803365,0.66177,4099.7,4099.6,2.45391643]
[1761626805858,41.23904,4100.0,4099.9,0.4212]
[1761626806060,41.23904,4100.0,4099.9,0.7449]
[1761626806257,41.23904,4100.0,4099.9,1.61815596]
[1761626807055,0.43904,4100.0,4099.9,1.61815596]
[1761626808161,0.43903,4100.1,4100.0,0.43902]
[1761626808466,0.43902,4100.2,4100.1,1.18392]
[1761626808659,0.43902,4100.2,4100.1,3.54182459]
[1761626809661,0.439,4100.4,4100.2,0.43901]
[1761626809866,1.1983,4100.4,4100.3,1.1839]
[1761626810065,1.1983,4100.4,4100.3,1.79279189]
[1761626810666,0.872,4100.4,4100.3,2.23179189]
[1761626810863,1.1983,4100.4,4100.3,2.0549127]
[1761626811063,1.1983,4100.4,4100.3,0.7449]
[1761626813363,1.1983,4100.4,4100.3,2.0549127]
[1761626814567,0.872,4100.4,4100.3,2.0549127]
[1761626814967,0.43899,4100.4,4100.3,2.4939127]
[1761626815770,0.43898,4100.5,4100.4,1.18389]
[1761626815971,0.43898,4100.5,4100.4,2.23178189]
[1761626816272,0.43898,4100.5,4100.4,1.79279189]
[1761626816961,0.66168,4100.5,4100.4,1.79279189]
[1761626822679,1.19828,4100.5,4100.4,0.7449]
[1761626826083,0.87198,4100.5,4100.4,0.7449]
[1761626826380,0.87198,4100.5,4100.4,1.18389]
[1761626826582,0.87198,4100.5,4100.4,0.7449]
[1761626827983,0.87198,4100.5,4100.4,1.18389]
[1761626828382,0.87198,4100.5,4100.4,0.7449]
[1761626829788,0.43898,4100.5,4100.4,0.7581]
[1761626830085,0.43898,4100.5,4100.4,2.5070927]
[1761626831279,0.66004357,4101.3,4101.2,0.779]
[1761626831485,0.66004357,4101.3,4101.2,1.82689189]
[1761626831672,0.66004357,4101.3,4101.2,2.70053502]
[1761626832179,0.66004357,4101.3,4101.2,1.82689189]
[1761626832486,0.66004357,4101.3,4101.2,2.26580189]
[1761626832487,0.00204357,4101.3,4101.2,2.26580189]
[1761626832691,0.44094357,4101.3,4101.2,2.26580189]
[1761626832986,0.00204357,4101.3,4101.2,2.26580189]
[1761626833688,0.00204357,4101.3,4101.2,2.47382955]
[1761626834784,0.44094357,4101.3,4101.2,2.03491955]
[1761626835488,0.44094357,4101.3,4101.2,2.47382955]
[1761626835787,0.00204357,4101.3,4101.2,2.47382955]
[1761626836688,0.44094357,4101.3,4101.2,2.47382955]
[1761626836881,0.44094357,4101.3,4101.2,2.03491955]
[1761626837587,0.44094357,4101.3,4101.2,2.47382955]
[1761626840282,0.44094357,4101.3,4101.2,3.7807306]
[1761626841389,0.44094357,4101.3,4101.2,2.52481105]
[1761626841687,0.66004357,4101.3,4101.2,2.52481105]
[1761626842681,0.00204357,4101.3,4101.2,2.52481105]
[1761626843691,0.44094357,4101.3,4101.2,2.52481105]
[1761626844591,1.19734357,4101.3,4101.2,1.42403737]
[1761626845287,0.88204357,4101.3,4101.2,1.65033737]
[1761626845488,1.19734357,4101.3,4101.2,1.65033737]
[1761626845688,0.88204357,4101.3,4101.2,1.65033737]
[1761626846886,0.44094357,4101.3,4101.2,1.65033737]
[1761626847091,0.44094357,4101.3,4101.2,2.52481105]
[1761626847290,0.00204357,4101.3,4101.2,2.52481105]
[1761626848394,0.44094357,4101.3,4101.2,2.52481105]
[1761626848691,0.00204357,4101.3,4101.2,1.21791]
[1761626851089,1.63134,4102.5,4102.3,0.3369]
[1761626851292,1.19518,4102.4,4102.3,0.779]
[1761626851492,41.99518,4102.4,4102.3,0.779]
[1761626851694,41.99518,4102.4,4102.3,0.5527]
[1761626851891,41.99518,4102.4,4102.3,0.779]
[1761626852095,41.99722936,4102.4,4102.3,0.78207948]
[1761626852595,41.68192936,4102.4,4102.3,1.43561794]
[1761626852988,41.68192936,4102.4,4102.3,1.40307806]
[1761626853500,41.99722936,4102.4,4102.3,1.40307806]
[1761626857000,41.68192936,4102.4,4102.3,1.40307806]
[1761626857402,41.99482936,4102.4,4102.3,1.40307806]
[1761626858208,41.99482936,4102.4,4102.3,0.7495396]
[1761626860203,0.65992936,4102.4,4102.3,1.62092421]
[1761626860401,0.44082936,4102.4,4102.3,0.7495396]
[1761626860603,0.00204936,4102.4,4102.3,1.1883296]
[1761626860808,0.00204936,4102.4,4102.3,2.49540652]
[1761626861307,0.44082936,4102.4,4102.3,2.05661652]
[1761626861506,0.66742936,4102.4,4102.3,2.05661652]
[1761626861710,1.20992936,4102.4,4102.3,1.61451652]
[1761626862409,0.89702936,4102.4,4102.3,2.05821652]
[1761626862611,0.89702936,4102.4,4102.3,0.7511396]
[1761626862908,0.66742936,4102.4,4102.3,0.7511396]
[1761626866311,0.44082936,4102.4,4102.3,1.1899296]
[1761626866910,0.00204936,4102.4,4102.3,1.1899296]
[1761626869611,0.00204936,4102.4,4102.3,2.93245336]
[1761626875211,0.00204936,4102.4,4102.3,2.93083025]
[1761626876223,0.00204936,4102.4,4102.3,1.1899296]
[1761626878723,1.20992936,4102.4,4102.3,2.49275272]
[1761626878922,1.20992936,4102.4,4102.3,0.7511396]
[1761626879127,1.20992936,4102.4,4102.3,2.05792933]
[1761626879525,0.89702936,4102.4,4102.3,2.49671933]
[1761626880329,0.45824936,4102.4,4102.3,3.75263888]
[1761626880528,0.00204936,4102.4,4102.3,2.44584915]
[1761626881128,0.00204936,4102.4,4102.3,4.18746227]
[1761626881425,0.00204936,4102.4,4102.3,2.44584915]
[1761626881927,0.43872,4103.0,4102.9,1.20773]
[1761626881928,0.66532,4103.0,4102.9,1.20773]
[1761626883128,0.66782308,4103.0,4102.9,1.20773]
[1761626883328,0.66782308,4103.0,4102.9,2.51467626]
[1761626883833,0.22910308,4103.0,4102.9,2.51467626]
[1761626884023,0.00250308,4103.0,4102.9,2.51467626]
[1761626884328,0.44122308,4103.0,4102.9,2.51467626]
[1761626886426,0.00250308,4103.0,4102.9,2.51467626]
[1761626887031,0.43865,4103.6,4103.5,1.32935]
[1761626887227,0.43865,4103.6,4103.5,2.63700353]
[1761626887531,0.88402,4104.0,4103.9,0.763]
[1761626887727,0.4386,4104.1,4104.0,1.32931]
[1761626887921,41.23859,4104.2,4104.1,0.3279]
[1761626888123,41.56770989,4104.2,4104.1,1.63435637]
[1761626888323,41.56770989,4104.2,4104.1,1.41885637]
[1761626888530,41.56770989,4104.2,4104.1,0.5475]
[1761626888926,41.56770989,4104.2,4104.1,1.63435637]
[1761626889433,41.56770989,4104.2,4104.1,0.763]
[1761626890328,41.56770989,4104.2,4104.1,0.5475]
[1761626891037,1.2102,4104.1,4104.0,0.87135637]
[1761626891437,1.21021,4104.0,4103.9,1.19925637]
[1761626891639,1.21021,4104.0,4103.9,0.3279]
[1761626891828,1.21022,4103.9,4103.8,0.87135637]
[1761626893233,1.21022,4103.9,4103.8,1.41885637]
[1761626897141,1.21022,4103.9,4103.8,0.5475]
[1761626897944,0.66592,4103.9,4103.8,1.80854909]
[1761626898142,1.21022,4103.9,4103.8,1.80854909]
[1761626898838,0.66592,4103.9,4103.8,1.80854909]
[1761626899145,0.43862,4103.9,4103.8,1.80854909]
[1761626899444,1.21022,4103.9,4103.8,1.80854909]
[1761626899640,0.43862,4103.9,4103.8,1.80854909]
[1761626900040,1.21022,4103.9,4103.8,1.80854909]
[1761626901047,1.21022,4103.9,4103.8,0.763]
[1761626901247,1.21022,4103.9,4103.8,1.41839159]
[1761626901745,1.21022,4103.9,4103.8,0.5475]
[1761626901946,0.43862,4103.9,4103.8,2.24717909]
[1761626902350,0.6659,4104.1,4104.0,1.32931]
[1761626902544,0.6659,4104.1,4104.0,3.2456241]
[1761626903450,0.6659,4104.1,4104.0,2.37485909]
[1761626903752,0.4386,4104.1,4104.0,2.37485909]
[1761626904338,40.80291989,4104.2,4104.0,2.37485909]
[1761626904339,0.00291989,4104.2,4104.1,0.7665]
[1761626904545,0.00291989,4104.2,4104.1,1.2016]
[1761626904949,0.00291989,4104.2,4104.1,2.50863759]
[1761626905249,0.00291989,4104.2,4104.1,1.2016]
[1761626905446,0.66880989,4104.2,4104.1,0.763]
[1761626905750,0.88690989,4104.2,4104.1,2.06844199]
[1761626905951,0.88690989,4104.2,4104.1,2.50704199]
[1761626906842,0.88690989,4104.2,4104.1,1.2016]
[1761626907755,0.66880989,4104.2,4104.1,1.2016]
[1761626909254,0.66880989,4104.2,4104.1,2.50704199]
[1761626909851,0.23021989,4104.2,4104.1,2.50704199]
[1761626910448,0.44150989,4104.2,4104.1,1.2016]
[1761626911549,0.00291989,4104.2,4104.1,1.2016]
[1761626912948,0.00291989,4104.2,4104.1,1.18207608]
[1761626916355,0.00291989,4104.2,4104.1,2.9246711]
[1761626916758,0.5537,4105.2,4105.1,0.7858]
[1761626916954,0.5537,4105.2,4105.1,1.83134909]
[1761626917154,41.3537,4105.2,4105.1,1.83134909]
[1761626917352,41.024,4105.2,4105.1,1.83134909]
[1761626917655,41.46248,4105.2,4105.1,2.26983909]
[1761626917858,41.46471358,4105.2,4105.1,2.26983909]
[1761626918457,41.46471358,4105.2,4105.1,3.14008881]
[1761626918658,41.46471358,4105.2,4105.1,2.26983909]
[1761626919059,41.79441358,4105.2,4105.1,2.26983909]
[1761626919554,41.74566219,4105.2,4105.1,2.26983909]
[1761626919858,41.41596219,4105.2,4105.1,2.26983909]
[1761626920955,41.41596219,4105.2,4105.1,1.83134909]
[1761626921360,41.74566219,4105.2,4105.1,1.83134909]
[1761626921961,41.74566219,4105.2,4105.1,2.26983909]
[1761626922959,41.74566219,4105.2,4105.1,1.83134909]
[1761626923561,41.74566219,4105.2,4105.1,2.26983909]
[1761626925664,41.74566219,4105.2,4105.1,1.83134909]
[1761626925958,0.4399,4105.1,4104.9,1.30626894]
[1761626926163,0.3297,4104.6,4104.5,2.08551894]
[1761626926461,1.20814,4104.6,4104.5,2.08551894]
[1761626926660,0.87844,4104.6,4104.5,2.66101894]
[1761626927056,1.20814,4104.6,4104.5,3.70656803]
[1761626927256,1.20814,4104.6,4104.5,2.40029909]
[1761626928056,0.87844,4104.6,4104.5,2.40029909]
[1761626928549,0.224,4104.8,4104.7,0.43853]
[1761626928749,0.66252,4104.8,4104.7,2.08970363]
[1761626928961,0.66252,4104.8,4104.7,2.52823363]
[1761626929461,1.20812,4104.8,4104.7,1.64460363]
[1761626929665,1.20812,4104.8,4104.7,0.3407]
[1761626930258,1.20812,4104.8,4104.7,1.64460363]
[1761626930865,1.20812,4104.8,4104.7,2.31223363]
[1761626931060,1.20812,4104.8,4104.7,2.52823363]
[1761626931664,0.87842,4104.8,4104.7,2.52823363]
[1761626932266,0.87842,4104.8,4104.7,1.22433]
[1761626932768,0.224,4104.8,4104.7,1.22433]
[1761626933666,0.66252,4104.8,4104.7,1.22433]
[1761626933865,0.224,4104.8,4104.7,2.26987909]
[1761626934754,0.5537,4106.1,4105.2,0.3407]
[1761626934962,1.208,4106.0,4105.9,0.5698]
[1761626935160,1.208,4106.0,4105.9,1.83134909]
[1761626935466,42.008,4106.0,4105.9,2.70048486]
[1761626935665,42.008,4106.0,4105.9,1.65493577]
[1761626935963,41.57156677,4106.0,4105.9,1.87939204]
[1761626936160,41.24186677,4106.0,4105.9,1.22625627]
[1761626936465,41.24186677,4106.0,4105.9,2.27180536]
[1761626938369,0.44186677,4106.0,4105.9,2.27180536]
[1761626938968,0.22596677,4106.0,4105.9,2.27180536]
[1761626939365,0.00196677,4106.0,4105.9,2.27180536]
[1761626939862,0.00196677,4106.0,4105.9,3.57669779]
[1761626940267,0.00196677,4106.0,4105.9,2.27180536]
[1761626940659,0.22596677,4106.0,4105.9,2.27180536]
[1761626941173,0.00196677,4106.0,4105.9,2.27180536]
[1761626942876,0.224,4106.6,4106.5,0.9162]
[1761626943071,0.224,4106.6,4106.5,2.40008909]
[1761626943972,0.22649048,4106.6,4106.5,2.40008909]
[1761626944173,0.66482048,4106.6,4106.5,1.96174909]
[1761626944476,1.21292048,4106.6,4106.5,2.82840982]
[1761626944676,1.21292048,4106.6,4106.5,1.96174909]
[1761626945478,1.21292048,4106.6,4106.5,2.40008909]
[1761626945677,0.77459048,4106.6,4106.5,2.40008909]
[1761626945874,0.22649048,4106.6,4106.5,2.40008909]
[1761626946180,0.00249048,4106.6,4106.5,2.40008909]
[1761626946475,0.00249048,4106.6,4106.5,3.26674982]
[1761626947178,0.00249048,4106.6,4106.5,2.22120073]
[1761626947877,0.00249048,4106.6,4106.5,2.65527473]
[1761626948181,0.22049048,4106.6,4106.5,2.65527473]
[1761626948371,0.98871,4107.7,4107.6,0.2142]
[1761626948576,0.86761,4107.7,4107.6,0.7461]
[1761626949074,42.00011,4107.7,4107.6,0.7461]
[1761626949480,42.00318573,4107.7,4107.6,0.7461]
[1761626949781,41.62193908,4107.7,4107.6,0.7461]
[1761626950079,41.95443908,4107.7,4107.6,0.7461]
[1761626952173,41.95443908,4107.7,4107.6,0.5365]
[1761626954883,41.95443908,4107.7,4107.6,0.7461]
[1761626955283,41.62193908,4107.7,4107.6,1.18433]
[1761626955489,41.62193908,4107.7,4107.6,0.7461]
[1761626955784,41.95443908,4107.7,4107.6,0.7461]
[1761626956985,41.95443908,4107.7,4107.6,0.5365]
[1761626957885,0.43827,4107.2,4107.1,2.32386997]
[1761626958083,0.65627,4107.2,4107.1,2.76214997]
[1761626958586,0.65627,4107.2,4107.1,3.08444997]
[1761626958992,0.218,4107.2,4107.1,3.08444997]
[1761626959586,0.65627,4107.2,4107.1,3.08444997]
[1761626961293,0.65627,4107.2,4107.1,2.43666915]
[1761626962393,0.43827,4107.2,4107.1,2.43666915]
[1761626962595,0.65623,4107.6,4107.5,0.8779]
[1761626964397,0.65623,4107.6,4107.5,1.52660127]
[1761626965394,0.00307573,4107.7,4107.6,0.7461]
[1761626965595,0.00307573,4107.7,4107.6,1.99838915]
[1761626965992,0.00307573,4107.7,4107.6,2.86390218]
[1761626966496,0.00307573,4107.7,4107.6,1.99838915]
[1761626967588,0.43247573,4107.7,4107.6,0.7461]
[1761626967792,0.43247573,4107.7,4107.5,1.62303473]
[1761626967793,1.20013,4107.6,4107.5,1.62303473]
[1761626967994,1.20013,4107.6,4107.5,0.5365]
[1761626968195,0.00307573,4107.7,4107.6,0.5365]
[1761626968196,0.87068573,4107.7,4107.6,0.5365]
[1761626968496,1.20318573,4107.7,4107.6,1.40304978]
[1761626969295,1.20318573,4107.7,4107.6,0.5365]
[1761626970196,1.20318573,4107.7,4107.6,0.7461]
[1761626970401,0.76497573,4107.7,4107.6,0.7461]
[1761626970599,0.43247573,4107.7,4107.6,0.7461]
[1761626970896,0.22107573,4107.7,4107.6,2.04683473]
[1761626971092,0.00307573,4107.7,4107.6,2.04683473]
[1761626971401,0.00307573,4107.7,4107.6,1.61301655]
[1761626972498,0.00307573,4107.7,4107.6,0.7461]
[1761626973297,0.43247573,4107.7,4107.6,0.86723526]
[1761626973505,0.7619,4107.6,4107.5,0.86723526]
[1761626973799,0.7619,4107.6,4107.5,1.18953526]
[1761626974702,0.7619,4107.6,4107.5,0.86723526]
[1761626975303,0.7619,4107.6,4107.5,1.21023526]
[1761626976105,0.7619,4107.6,4107.5,1.42163526]
[1761626976305,0.7619,4107.6,4107.5,0.5544]
[1761626977702,0.7619,4107.6,4107.5,0.343]
[1761626978806,0.7619,4107.6,4107.3,0.86833818]
[1761626978807,1.20635,4107.4,4107.3,0.86833818]
[1761626979297,1.20635,4107.4,4107.3,1.21133818]
[1761626979497,42.00635,4107.4,4107.3,1.21133818]
[1761626980102,42.00635,4107.4,4107.3,0.343]
[1761626980514,1.20636,4107.3,4107.2,1.21133818]
[1761626980802,1.20636,4107.3,4107.2,0.86833818]
[1761626981509,1.20636,4107.3,4107.2,1.30073473]
[1761626983110,1.20636,4107.3,4107.2,1.64373473]
[1761626983408,1.20636,4107.3,4107.2,1.85513473]
[1761626984004,1.20636,4107.3,4107.2,1.30073473]
[1761626984196,1.09575,4107.0,4106.8,0.86858145]
[1761626984403,1.2064,4106.9,4106.8,1.42298145]
[1761626984910,1.2064,4106.9,4106.8,1.63338145]
[1761626985103,0.876,4106.9,4106.8,0.7648]
[1761626985409,0.876,4106.9,4106.8,1.63273784]
[1761626985706,1.32258915,4107.5,4107.2,0.7648]
[1761626985707,0.84184633,4107.3,4107.2,0.7648]
[1761626985903,0.65708573,4107.7,4107.6,0.7648]
[1761626986109,0.65708573,4107.7,4107.6,1.20302]
[1761626986110,40.80307573,4107.7,4107.6,1.20302]
[1761626987207,41.24128573,4107.7,4107.6,1.20302]
[1761626987509,40.80307573,4107.7,4107.6,1.20302]
[1761626987906,41.24128573,4107.7,4107.6,0.7648]
[1761626988506,41.55758573,4107.7,4107.6,0.7648]
[1761626989710,40.80307573,4107.7,4107.6,2.5044771]
[1761626993011,41.24128573,4107.7,4107.6,2.0662571]
[1761626993209,41.55758573,4107.7,4107.6,0.7648]
[1761626993604,41.55758573,4107.7,4107.6,0.5544]
[1761626994011,1.19224,4107.5,4107.4,1.3014571]
[1761626994207,1.19224,4107.5,4107.4,1.5128571]
[1761626994709,1.19224,4107.5,4107.4,0.5544]
[1761626995217,1.19224,4107.5,4107.4,1.42226014]
[1761626995409,41.99224,4107.5,4107.4,1.42226014]
[1761626996418,41.67594,4107.5,4107.4,0.7648]
[1761626997019,41.67594,4107.5,4107.4,1.63265177]
[1761626997322,41.67594,4107.5,4107.4,0.7648]
[1761626998820,41.99224,4107.5,4107.4,0.7648]
[1761626999018,41.67594,4107.5,4107.4,0.7648]
[1761626999722,41.67594,4107.5,4107.4,1.20305]
[1761627000614,41.67594,4107.5,4107.4,0.7648]
[1761627001425,1.19225,4107.4,4107.3,1.6444571]
[1761627001723,1.19225,4107.4,4107.3,0.343]
[1761627002120,1.19225,4107.4,4107.3,0.5544]
[1761627003027,1.19225,4107.4,4107.2,1.3014571]
[1761627003214,1.19227,4107.2,4107.1,1.3014571]
[1761627003719,1.19227,4107.2,4107.1,0.86796702]
[1761627003918,1.19227,4107.2,4107.1,0.65108668]
[1761627005725,1.18468,4107.1,4107.0,0.65108668]
[1761627006122,1.18468,4107.1,4106.8,0.86796702]
[1761627006123,1.31419,4107.0,4106.9,0.65108668]
[1761627006427,1.1847,4106.9,4106.8,0.65108668]
[1761627006724,1.18471,4106.8,4106.7,1.18106702]
[1761627007122,1.18471,4106.8,4106.7,0.3131]
[1761627007423,41.98471,4106.8,4106.7,0.3131]
[1761627008417,1.19772,4106.7,4106.6,0.86796702]
[1761627009120,1.19772,4106.7,4106.6,1.20436702]
[1761627009826,1.19772,4106.7,4106.6,1.41276702]
[1761627011429,1.19772,4106.7,4106.6,0.86796702]
[1761627011722,0.43833,4106.6,4106.5,0.86796702]
[1761627011926,1.19773,4106.6,4106.5,0.86796702]
[1761627012720,1.19773,4106.6,4106.5,1.20436702]
[1761627013328,1.19773,4106.6,4106.5,1.41276702]
[1761627015622,1.19773,4106.6,4106.5,1.20436702]
[1761627016429,1.19773,4106.6,4106.5,0.3364]
[1761627016630,1.19773,4106.6,4106.5,1.20436702]
[1761627016928,1.19773,4106.6,4106.5,0.3364]
[1761627017628,1.19773,4106.6,4106.5,0.6701]
[1761627017825,0.88143,4106.6,4106.5,0.8817]
[1761627018431,1.19773,4106.6,4106.5,0.8817]
[1761627018728,1.19773,4106.6,4106.5,0.3364]
[1761627019230,1.19773,4106.6,4106.5,1.20436702]
[1761627020226,1.19774,4106.5,4106.4,1.20436702]
[1761627020432,1.19775,4106.4,4106.3,0.65054235]
[1761627020623,1.19777,4106.2,4106.1,0.67369936]
[1761627021025,41.99777,4106.2,4106.1,0.67369936]
[1761627021324,41.68147,4106.2,4106.1,1.21849936]
[1761627021523,41.68147,4106.2,4106.1,0.77955701]
[1761627022029,41.99777,4106.2,4106.1,0.77955701]
[1761627022527,41.99777,4106.2,4106.1,0.56795701]
[1761627022934,41.99777,4106.2,4106.1,0.35955701]
[1761627023430,41.99777,4106.2,4106.1,0.02315701]
[1761627031234,41.99777,4106.2,4106.1,0.67369936]
[1761627032233,41.99777,4106.2,4106.1,0.02315701]
[1761627034041,41.99777,4106.2,4106.1,0.35955701]
[1761627038539,41.99777,4106.2,4106.1,0.57555701]
[1761627038751,41.68147,4106.2,4106.1,1.66282403]
[1761627039351,41.99767,4106.2,4106.1,1.66282403]
[1761627043345,1.19767,4106.2,4106.1,1.66282403]
[1761627044645,0.88147,4106.2,4106.1,1.66282403]
[1761627045743,1.19767,4106.2,4106.1,1.66282403]
[1761627046142,1.19767,4106.2,4106.1,0.79485701]
[1761627046347,0.65627,4106.2,4106.1,3.14049182]
[1761627049250,0.65627,4106.2,4106.1,1.83903472]
[1761627052152,0.65627,4106.2,4106.1,0.79485701]
[1761627055761,1.18557,4106.2,4106.1,0.79485701]
[1761627055955,0.86937,4106.2,4106.1,0.79485701]
[1761627059661,1.18557,4106.2,4106.1,0.79485701]
[1761627059867,2.22974771,4106.2,4106.1,0.02315701]
[1761627060763,43.02974771,4106.2,4106.1,0.02315701]
[1761627062159,41.98557,4106.2,4106.1,1.67506505]
[1761627062360,41.98557,4106.2,4106.1,1.89106505]
[1761627063666,41.66937,4106.2,4106.1,0.80315701]
[1761627063971,41.98557,4106.2,4106.1,1.89109586]
[1761627064161,41.98557,4106.2,4106.1,1.67509586]
[1761627065872,41.98557,4106.2,4106.1,1.33039586]
[1761627066073,43.02974771,4106.2,4106.1,0.02315701]
[1761627067873,43.02974771,4106.2,4106.1,0.33805701]
[1761627068067,43.02974771,4106.2,4106.1,1.64529586]
[1761627070773,43.02974771,4106.2,4106.1,1.33039586]
[1761627071367,43.02974771,4106.2,4106.1,0.02315701]
[1761627072078,43.02974771,4106.2,4106.1,0.33805701]
[1761627072979,41.66937,4106.2,4106.1,2.08189586]